fUSD/lending_fUSD_20240114
["ID","MTS","AMOUNT","RATE_DAILY","PERIOD"]
[311597599,1705264238561,-2307.53905902,0.00022106,2]
[311597601,1705264238570,-700.15,0.00022106,2]
[311597603,1705264238581,-2813.88,0.00022106,2]
[311597605,1705264238591,-1404.16,0.00022106,2]
[311597607,1705264238600,-1335.22133189,0.00022111,2]
[311597609,1705264238610,-6055.61,0.00022111,2]
[311597611,1705264238619,-232.95,0.00022111,2]
[311597613,1705264238629,-224.9651623,0.00022113,2]
[311597615,1705264238639,-10085.68848253,0.00022114,2]
[311597621,1705264238689,-2207.63566738,0.00022114,2]
[311597626,1705264238726,-1043936.16044936,0.00022114,2]
[311597628,1705264238735,-2089.32599839,0.00022116,2]
[311597630,1705264238745,-1000.0,0.00022124,2]
[311597632,1705264238754,-1000.0,0.00022124,2]
[311597634,1705264238764,-926.45744258,0.00022124,2]
[311597637,1705264238774,-155.64640327,0.00022125,2]
[311597639,1705264238784,-1758.45865556,0.00022127,2]
[311597640,1705264238794,-825.65437686,0.00022127,2]
[311597642,1705264238803,-160.39069179,0.00022127,2]
[311597644,1705264238812,-626.26736436,0.00022127,2]
[311597647,1705264238824,-155.00209641,0.00022127,2]
[311597649,1705264238834,-155.52034948,0.00022127,2]
[311597651,1705264238844,-155.0,0.00022127,2]
[311597653,1705264238853,-176.93574022,0.00022127,2]
[311597654,1705264238863,-213.42804886,0.00022127,2]
[311597657,1705264238873,-346.52137818,0.00022127,2]
[311597658,1705264238883,-399.54666123,0.00022127,2]
[311597660,1705264238893,-206.40443824,0.00022127,2]
[311597662,1705264238902,-348.59475562,0.00022127,2]
[311597663,1705264238912,-243.40859199,0.00022127,2]
[311597664,1705264238921,-158.80868228,0.00022127,2]
[311597665,1705264238930,-225.82963273,0.00022127,2]
[311597666,1705264238939,-183.68968646,0.00022127,2]
[311597667,1705264238948,-155.0,0.00022127,2]
[311597668,1705264238958,-2580.00013988,0.00022127,2]
[311597669,1705264238967,-540.4647031,0.00022127,2]
[311597670,1705264238976,-12981.15643031,0.00022127,2]
[311597671,1705264238985,-155.99624117,0.00022127,2]
[311597672,1705264238994,-155.0,0.00022127,2]
[311597673,1705264239003,-155.0,0.00022127,2]
[311597674,1705264239012,-155.40537843,0.00022127,2]
[311597675,1705264239021,-206.91186275,0.00022127,2]
[311597677,1705264239030,-233.82560412,0.00022127,2]
[311597679,1705264239039,-1173.42470286,0.00022127,2]
[311597681,1705264239048,-155.0,0.00022127,2]
[311597683,1705264239057,-155.37801653,0.00022128,2]
[311597685,1705264239066,-160.14020182,0.00022128,2]
[311597687,1705264239077,-155.05,0.0002213,2]
[311597689,1705264239086,-155.0,0.00022132,2]
[311597691,1705264239095,-704.87473995,0.00022132,2]
[311597693,1705264239104,-852.37,0.00022138,2]
[311597695,1705264239119,-155.05,0.00022189,2]
[311597697,1705264239128,-704.41,0.00022215,2]
[311597699,1705264239137,-168.34,0.00022216,2]
[311597701,1705264239146,-923.72233206,0.00022237,2]
[311597703,1705264239156,-155.05,0.00022247,2]
[311597705,1705264239166,-150.0,0.00022253,2]
[311597707,1705264239176,-5490.7983,0.00022256,2]
[311597709,1705264239185,-474.537,0.00022256,2]
[311597711,1705264239196,-245000.0,0.00022258,2]
[311597713,1705264239206,-205.0,0.000223,2]
[311597715,1705264239215,-155.05,0.00022305,2]
[311597718,1705264239225,-734.59834849,0.00022307,2]
[311597720,1705264239239,-734.59834849,0.00022307,2]
[311597722,1705264239248,-156.23,0.00022322,2]
[311597724,1705264239258,-704.41,0.00022327,2]
[311597726,1705264239267,-155.05,0.00022364,2]
[311597728,1705264239277,-1230.90523417,0.00022368,2]
[311597730,1705264239287,-155.05,0.00022422,2]
[311597732,1705264239297,-704.41,0.00022439,2]
[311597734,1705264239306,-923.72233206,0.00022458,2]
[311597736,1705264239316,-1000.0,0.0002248,2]
[311597738,1705264239326,-86895.4545,0.0002248,2]
[311597740,1705264239335,-2604.6342,0.0002248,2]
[311597742,1705264239344,-359.0373,0.0002248,2]
[311597744,1705264239354,-150.46768086,0.0002249,2]
[311597747,1705264239363,-1000.0,0.00022493,2]
[311597749,1705264239375,-899.99490659,0.000225,2]
[311597751,1705264239384,-19110.28636174,0.000225,2]
[311597795,1705264239753,-1872.97,0.000225,2]
[311597797,1705264239762,-2600.995895,0.000225,2]
[311597799,1705264239772,-1393.09674446,0.00022509,2]
[311597801,1705264239781,-300.0,0.00022529,2]
[311597803,1705264239790,-156.23,0.00022545,2]
[311597805,1705264239799,-704.41,0.0002255,2]
[311597807,1705264239808,-1000.0,0.00022552,2]
[311597809,1705264239817,-168.34,0.00022569,2]
[311597811,1705264239827,-258440.36106673,0.000226,2]
[311597813,1705264239836,-296.20990573,0.0002261,2]
[311597815,1705264239845,-1230.90523417,0.0002264,2]
[311597817,1705264239854,-704.41,0.00022662,2]
[311597819,1705264239864,-645.41150069,0.00022666,2]
[311597821,1705264239873,-923.72233206,0.00022679,2]
[311597823,1705264239882,-161.22,0.00022701,2]
[311597825,1705264239891,-161.05,0.00022718,2]
[311597827,1705264239900,-150.0,0.00022761,2]
[311597829,1705264239909,-223.10158547,0.00022768,4]
[311597831,1705264239918,-156.23,0.00022769,2]
[311597833,1705264239927,-31803.25237605,0.0002277,2]
[311597835,1705264239936,-704.41,0.00022774,2]
[311597837,1705264239945,-500.0,0.00022815,2]
[311597839,1705264239954,-200.0,0.00022815,2]
[311597841,1705264239963,-500.0,0.00022815,2]
[311597843,1705264239972,-200.0,0.00022815,2]
[311597845,1705264239981,-500.0,0.00022815,2]
[311597847,1705264239991,-200.0,0.00022816,2]
[311597849,1705264240000,-800.0,0.00022816,2]
[311597851,1705264240009,-200.0,0.00022816,2]
[311597853,1705264240018,-500.0,0.00022816,2]
[311597855,1705264240027,-500.0,0.00022816,2]
[311597857,1705264240036,-200.0,0.00022816,2]
[311597859,1705264240045,-500.0,0.00022816,2]
[311597861,1705264240055,-500.0,0.00022816,2]
[311597863,1705264240064,-500.0,0.00022816,2]
[311597865,1705264240073,-500.0,0.00022816,2]
[311597867,1705264240082,-500.0,0.00022816,2]
[311597870,1705264240092,-200.0,0.00022816,2]
[311597873,1705264240101,-200.0,0.00022816,2]
[311597875,1705264240110,-200.0,0.00022816,2]
[311597877,1705264240120,-200.0,0.00022816,2]
[311597879,1705264240131,-15119.89877906,0.00022863,2]
[311597881,1705264240140,-203.41484713,0.00022867,2]
[311597883,1705264240149,-150.0,0.00022875,2]
[311597885,1705264240158,-150.0,0.00022876,2]
[311597887,1705264240167,-704.41,0.00022885,2]
[311597889,1705264240176,-1402.8155,0.00022898,2]
[311597891,1705264240185,-728.0,0.00022899,2]
[311597893,1705264240194,-923.72233206,0.000229,2]
[311597895,1705264240204,-55555.0,0.000229,2]
[311597897,1705264240214,-168.34,0.00022921,2]
[311597899,1705264240224,-150.0,0.00022923,2]
[311597901,1705264240233,-800.0,0.00022959,2]
[311597904,1705264240242,-156.23,0.00022993,2]
[311597907,1705264240251,-704.41,0.00022997,2]
[311597909,1705264240260,-156.84105949,0.00022998,2]
[311597912,1705264240269,-364.99858209,0.00022998,2]
[311597914,1705264240279,-1278.13193774,0.00022998,2]
[311597916,1705264240288,-155.0,0.00022998,2]
[311597918,1705264240297,-522.61370155,0.00022998,2]
[311597920,1705264240306,-192.14041212,0.00022998,2]
[311597922,1705264240315,-184.02329883,0.00022998,2]
[311597924,1705264240324,-155.28747022,0.00022998,2]
[311597926,1705264240333,-150.01,0.00022999,2]
[311597928,1705264240342,-206.79487175,0.00022999,2]
[311597930,1705264240351,-2923.42832486,0.00022999,2]
[311597932,1705264240360,-300.0,0.00022999,2]
[311597934,1705264240369,-300.0,0.00022999,2]
[311597936,1705264240378,-192.83329262,0.00022999,2]
[311597938,1705264240387,-300.0,0.00022999,2]
[311597940,1705264240396,-300.0,0.00022999,2]
[311597942,1705264240406,-963244.51784192,0.00023,2]
[311597944,1705264240415,-151.0,0.00023,7]
[311597946,1705264240424,-151.0,0.00023,7]
[311597947,1705264240433,-151.0,0.00023,7]
[311597949,1705264240442,-151.0,0.00023,7]
[311597951,1705264240451,-151.0,0.00023,7]
[311597953,1705264240460,-151.0,0.00023,7]
[311597955,1705264240469,-202.53577,0.00023,7]
[311597956,1705264240478,-202.53577,0.00023,7]
[311597959,1705264240487,-151.0,0.00023,7]
[311597960,1705264240496,-151.0,0.00023,7]
[311597962,1705264240505,-160.005945,0.00023,7]
[311597964,1705264240514,-160.005945,0.00023,7]
[311597966,1705264240523,-151.0,0.00023,7]
[311597968,1705264240532,-151.0,0.00023,7]
[311597970,1705264240541,-1500.0,0.00023,2]
[311597972,1705264240550,-151.0,0.00023,7]
[311597974,1705264240560,-150.0,0.00023,2]
[311597976,1705264240570,-87197.5958142,0.00023009,2]
[311597978,1705264240580,-2322.2588321,0.00023009,2]
[311597980,1705264240589,-266.01930149,0.00023009,2]
[311597982,1705264240599,-2919.9012411,0.00023009,2]
[311597984,1705264240608,-3999.7999554,0.00023009,2]
[311597986,1705264240617,-158.84,0.00023057,2]
[311597988,1705264240626,-704.41,0.00023108,2]
[311597990,1705264240636,-852.37,0.00023116,2]
[311597992,1705264240645,-1230.90523417,0.00023118,2]
[311597994,1705264240655,-178.72,0.00023123,2]
[311597996,1705264240664,-536.88749293,0.00023128,3]
[311597998,1705264240673,-388.53338302,0.00023136,3]
[311598000,1705264240683,-1288.45886041,0.00023136,3]
[311598002,1705264240692,-657.71548579,0.00023143,3]
[311598004,1705264240701,-500.0,0.00023143,3]
[311598006,1705264240711,-159.8,0.00023158,2]
[311598008,1705264240720,-309.67929192,0.00023159,3]
[311598010,1705264240729,-592.49044077,0.00023159,3]
[311598012,1705264240738,-3155.11223077,0.00023168,3]
[311598014,1705264240747,-466.34466318,0.00023168,3]
[311598016,1705264240756,-519.64450204,0.00023176,3]
[311598018,1705264240766,-735.90727956,0.00023176,3]
[311598020,1705264240775,-1393.09674446,0.00023179,2]
[311598022,1705264240784,-264.65051298,0.00023193,3]
[311598024,1705264240793,-259.90728129,0.00023193,3]
[311598026,1705264240803,-186.33418761,0.00023193,3]
[311598027,1705264240812,-156.23,0.00023217,2]
[311598029,1705264240821,-704.41,0.0002322,2]
[311598031,1705264240832,-150.13,0.00023222,2]
[311598033,1705264240841,-500.0,0.00023245,2]
[311598035,1705264240850,-168.34,0.00023274,2]
[311598037,1705264240859,-1230.90523417,0.00023301,2]
[311598039,1705264240868,-159.8,0.00023322,2]
[311598041,1705264240877,-704.41,0.00023332,2]
[311598043,1705264240886,-1963.74169438,0.00023365,2]
[311598045,1705264240895,-161.05,0.00023389,2]
[311598047,1705264240904,-158.84,0.00023423,2]
[311598049,1705264240914,-156.23,0.00023441,2]
[311598051,1705264240923,-159.8,0.00023486,2]
[311598053,1705264240932,-150.13,0.00023495,2]
[311598055,1705264240941,-293.27,0.00023507,2]
[311598057,1705264240950,-939.95,0.00023589,2]
[311598059,1705264240960,-156.23,0.00023665,2]
[311598061,1705264240969,-343.0,0.000237,2]
[311598063,1705264240978,-15119.89877906,0.00023701,2]
[311598065,1705264240987,-2286.33567688,0.00023741,2]
[311598067,1705264240997,-515.6,0.00023766,2]
[311598068,1705264241006,-150.13,0.00023768,2]
[311598069,1705264241015,-150.0,0.00023781,2]
[311598070,1705264241025,-408.0,0.00023781,2]
[311598071,1705264241034,-300.0,0.00023781,2]
[311598072,1705264241043,-158.84,0.00023789,2]
[311598073,1705264241053,-528.91,0.00023795,2]
[311598074,1705264241062,-313.84,0.00023809,2]
[311598075,1705264241071,-294.11,0.00023836,2]
[311598076,1705264241082,-294.11,0.00023836,2]
[311598077,1705264241091,-294.11,0.00023836,2]
[311598078,1705264241100,-178.72,0.00023846,2]
[311598080,1705264241110,-156.23,0.00023889,2]
[311598082,1705264241119,-588.86,0.00023893,2]
[311598084,1705264241129,-300.0,0.00023899,2]
[311598086,1705264241142,-430.99724455,0.00024,2]
[311598088,1705264241151,-218.08401277,0.00024,2]
[311598090,1705264241161,-205.0,0.00024014,4]
[311598092,1705264241169,-161.22,0.00024041,2]
[311598094,1705264241178,-150.13,0.00024041,2]
[311598096,1705264241188,-161.05,0.00024059,2]
[311598098,1705264241197,-852.37,0.00024095,2]
[311598100,1705264241206,-156.23,0.00024113,2]
[311598102,1705264241216,-158.84,0.00024155,2]
[311598104,1705264241226,-500.0,0.00024221,2]
[311598106,1705264241235,-167.41,0.00024297,2]
[311598108,1705264241245,-168.21,0.00024297,2]
[311598110,1705264241254,-156.23,0.00024337,2]
[311598112,1705264241264,-150.0,0.00024493,2]
[311598114,1705264241273,-150.0,0.00024493,2]
[311598116,1705264241283,-150.0,0.00024493,2]
[311598118,1705264241293,-15119.89877906,0.0002454,2]
[311598120,1705264241302,-156.23,0.00024561,2]
[311598122,1705264241312,-1000.0,0.000246,2]
[311598124,1705264241321,-418.07,0.00024603,2]
[311598127,1705264241331,-150.0,0.00024603,2]
[311598128,1705264241341,-151.76,0.00024603,2]
[311598130,1705264241350,-250.0,0.00024658,2]
[311598132,1705264241359,-313.84,0.00024676,2]
[311598135,1705264241368,-1963.74169438,0.00024705,2]
[311598137,1705264241378,-161.05,0.00024729,2]
[311598138,1705264241387,-156.23,0.00024785,2]
[311598140,1705264241396,-3934.0,0.000248,2]
[311598143,1705264241405,-401.38,0.0002483,2]
[311598145,1705264241415,-940.47,0.00024864,2]
[311598146,1705264241424,-401.38,0.00024864,2]
[311598148,1705264241433,-558.47,0.00024864,2]
[311598150,1705264241442,-810.95,0.00024864,2]
[311598152,1705264241451,-940.47,0.00024864,2]
[311598154,1705264241460,-837.49,0.00024864,2]
[311598157,1705264241470,-940.47,0.00024864,2]
[311598158,1705264241479,-1878.92,0.00024864,2]
[311598161,1705264241489,-2286.33567688,0.00024881,2]
[311598163,1705264241499,-49772.0,0.000249,2]
[311598165,1705264241508,-186.0,0.00024914,2]
[311598166,1705264241517,-1583.00550367,0.00025,2]
[311598169,1705264241527,-791.70486661,0.00025,2]
[311598171,1705264241536,-666.86432543,0.00025,2]
[311598173,1705264241545,-350.0,0.00025,3]
[311598174,1705264241554,-300.0,0.00025,2]
[311598177,1705264241563,-150.0,0.00025,2]
[311598178,1705264241573,-150.0,0.00025,2]
[311598180,1705264241584,-333.329578,0.00025,2]
[311598182,1705264241594,-156.23,0.00025009,2]
[311598185,1705264241605,-450.0,0.0002502,3]
[311598187,1705264241614,-852.37,0.00025073,2]
[311598189,1705264241624,-150.0,0.00025151,2]
[311598191,1705264241632,-150.0,0.00025151,2]
[311598193,1705264241641,-150.0,0.00025151,2]
[311598194,1705264241650,-156.23,0.00025233,2]
[311598196,1705264241659,-161.11023264,0.00025314,2]
[311598198,1705264241668,-198.45403733,0.00025314,2]
[311598201,1705264241678,-15119.89877906,0.00025379,2]
[311598203,1705264241688,-161.22,0.0002538,2]
[311598205,1705264241698,-161.05,0.00025399,2]
[311598206,1705264241707,-156.23,0.00025456,2]
[311598209,1705264241718,-293.92,0.00025507,2]
[311598210,1705264241727,-150.0,0.00025507,2]
[311598212,1705264241736,-314.34,0.00025507,2]
[311598214,1705264241745,-418.07,0.00025507,2]
[311598217,1705264241754,-314.34,0.00025507,2]
[311598219,1705264241763,-418.07,0.00025507,2]
[311598220,1705264241773,-150.0,0.00025507,2]
[311598222,1705264241782,-418.07,0.00025507,2]
[311598224,1705264241791,-314.34,0.00025507,2]
[311598226,1705264241800,-418.07,0.00025507,2]
[311598228,1705264241809,-314.34,0.00025507,2]
[311598230,1705264241819,-418.07,0.00025507,2]
[311598232,1705264241828,-314.34,0.00025507,2]
[311598234,1705264241837,-312.58,0.00025507,2]
[311598236,1705264241846,-418.07,0.00025507,2]
[311598238,1705264241855,-418.07,0.00025507,2]
[311598240,1705264241864,-418.07,0.00025507,2]
[311598242,1705264241874,-313.84,0.00025543,2]
[311598244,1705264241883,-205.0,0.00025727,7]
[311598246,1705264241892,-940.47,0.00025789,2]
[311598248,1705264241901,-940.47,0.00025789,2]
[311598250,1705264241910,-940.47,0.00025789,2]
[311598252,1705264241919,-940.47,0.00025789,2]
[311598254,1705264241928,-477.7,0.00025789,2]
[311598256,1705264241937,-50000.0,0.0002589,2]
[311598258,1705264241947,-222.24,0.0002591,2]
[311598260,1705264241956,-150.0,0.0002591,2]
[311598262,1705264241966,-300.0,0.0002591,2]
[311598264,1705264241975,-150.0,0.0002591,2]
[311598266,1705264241985,-171.60687535,0.00025975,2]
[311598268,1705264241994,-6071.0,0.00026,2]
[311598270,1705264242004,-300.0,0.00026,2]
[311598272,1705264242013,-150.0,0.00026,2]
[311598274,1705264242022,-2286.33567688,0.00026022,2]
[311598276,1705264242031,-515.6,0.0002603,2]
[311598278,1705264242040,-1963.74169438,0.00026045,3]
[311598280,1705264242050,-852.37,0.00026052,2]
[311598283,1705264242059,-150.0,0.00026079,2]
[311598284,1705264242068,-159.28,0.00026203,2]
[311598287,1705264242077,-7999.99,0.00026217,5]
[311598289,1705264242087,-15119.89877906,0.00026218,2]
[311598291,1705264242096,-254.88396689,0.000263,2]
[311598292,1705264242105,-665.61855424,0.000263,2]
[311598295,1705264242115,-418.07,0.00026329,2]
[311598297,1705264242125,-313.84,0.0002641,2]
[311598299,1705264242138,-528.91,0.00026439,2]
[311598301,1705264242146,-588.86,0.00026548,2]
[311598303,1705264242155,-8650.54,0.00026575,2]
[311598305,1705264242164,-1062.08632786,0.00026612,28]
[311598307,1705264242174,-2903.0,0.00026738,2]
[311598309,1705264242184,-19688.0,0.00026738,2]
[311598311,1705264242193,-1852.0,0.00026738,2]
[311598313,1705264242203,-835.0,0.00026738,2]
[311598315,1705264242212,-242.229,0.00026738,2]
[311598317,1705264242221,-1234.0,0.00026738,2]
[311598319,1705264242230,-1252.0,0.00026738,2]
[311598321,1705264242239,-603.218,0.00026738,2]
[311598323,1705264242248,-5000.0,0.000269,2]
[311598324,1705264242257,-400.0,0.00027,3]
[311598327,1705264242266,-300.0,0.00027,2]
[311598328,1705264242275,-150.0,0.00027,2]
[311598330,1705264242285,-852.37,0.0002703,2]
[311598332,1705264242294,-15119.89877906,0.00027056,2]
[311598335,1705264242304,-186.0,0.00027059,2]
[311598337,1705264242313,-2286.33567688,0.00027162,3]
[311598338,1705264242322,-313.84,0.00027277,2]
[311598340,1705264242331,-713.89525135,0.000273,2]
[311598342,1705264242340,-713.89525135,0.000273,2]
[311598345,1705264242350,-713.89525135,0.000273,2]
[311598346,1705264242359,-713.89525135,0.000273,2]
[311598348,1705264242368,-713.89525135,0.000273,2]
[311598350,1705264242377,-713.89525135,0.000273,2]
[311598352,1705264242386,-713.89525135,0.000273,2]
[311598355,1705264242395,-713.89525135,0.000273,2]
[311598357,1705264242404,-713.89525135,0.000273,2]
[311598358,1705264242413,-713.89525135,0.000273,2]
[311598361,1705264242422,-713.89525135,0.000273,2]
[311598363,1705264242432,-713.89525135,0.000273,2]
[311598365,1705264242440,-713.89525135,0.000273,2]
[311598367,1705264242450,-713.89525135,0.000273,2]
[311598369,1705264242459,-713.89525135,0.000273,2]
[311598370,1705264242468,-713.89525135,0.000273,2]
[311598372,1705264242477,-1963.74169438,0.00027386,3]
[311598374,1705264242486,-155.0,0.00027397,2]
[311598377,1705264242495,-250.0,0.00027397,2]
[311598379,1705264242505,-250.0,0.000274,2]
[311598381,1705264242514,-5690.6930067,0.000274,2]
[311598383,1705264242523,-6080.8786394,0.000274,2]
[311598385,1705264242532,-335.56,0.000274,2]
[311598386,1705264242541,-335.56,0.000274,2]
[311598388,1705264242550,-335.56,0.000274,2]
[311598390,1705264242560,-335.56,0.000274,2]
[311598392,1705264242569,-335.56,0.000274,2]
[311598394,1705264242578,-335.56,0.000274,2]
[311598398,1705264242588,-335.56,0.000274,2]
[311598400,1705264242598,-335.56,0.000274,2]
[311598401,1705264242607,-335.56,0.000274,2]
[311598403,1705264242616,-335.56,0.000274,2]
[311598405,1705264242625,-500.0,0.00027418,2]
[311598407,1705264242635,-205.0,0.00027441,9]
[311598409,1705264242644,-150.0,0.00027603,2]
[311598411,1705264242653,-796.21,0.00027603,2]
[311598414,1705264242663,-294.11,0.00027603,2]
[311598415,1705264242672,-294.11,0.00027603,2]
[311598418,1705264242681,-314.34,0.00027603,2]
[311598420,1705264242690,-314.34,0.00027603,2]
[311598422,1705264242699,-292.9,0.00027603,2]
[311598423,1705264242708,-150.0,0.00027616,2]
[311598426,1705264242717,-150.0,0.00027616,2]
[311598429,1705264242725,-150.0,0.00027616,2]
[311598431,1705264242735,-15119.89877906,0.00027895,2]
[311598433,1705264242744,-686.87814676,0.00028,2]
[311598435,1705264242752,-300.0,0.00028,2]
[311598437,1705264242762,-150.0,0.00028,2]
[311598439,1705264242771,-852.37,0.00028009,2]
[311598441,1705264242779,-313.84,0.00028144,2]
[311598443,1705264242789,-515.6,0.00028294,2]
[311598445,1705264242798,-2286.33567688,0.00028303,4]
[311598447,1705264242807,-168.21,0.00028307,2]
[311598449,1705264242816,-294.11,0.00028392,2]
[311598451,1705264242825,-294.11,0.00028392,2]
[311598453,1705264242838,-294.11,0.00028392,2]
[311598455,1705264242848,-294.11,0.00028392,2]
[311598458,1705264242857,-294.11,0.00028392,2]
[311598459,1705264242866,-381.74,0.00028392,2]
[311598461,1705264242876,-417.82,0.00028392,2]
[311598464,1705264242886,-150.0,0.00028392,2]
[311598466,1705264242895,-314.34,0.00028425,2]
[311598468,1705264242904,-151.0,0.00028497,7]
[311598470,1705264242913,-202.53577,0.00028497,7]
[311598471,1705264242922,-202.53577,0.00028497,7]
[311598472,1705264242931,-151.0,0.00028497,7]
[311598473,1705264242941,-151.0,0.00028497,7]
[311598474,1705264242951,-160.005945,0.00028497,7]
[311598475,1705264242959,-160.005945,0.00028497,7]
[311598476,1705264242969,-151.0,0.00028497,7]
[311598477,1705264242978,-151.0,0.00028497,7]
[311598478,1705264242987,-151.0,0.00028497,7]
[311598479,1705264242996,-215.131,0.00028497,2]
[311598481,1705264243005,-318.0,0.00028497,2]
[311598483,1705264243015,-428.448,0.00028497,2]
[311598485,1705264243024,-870.0,0.00028497,2]
[311598487,1705264243033,-183.317,0.00028497,2]
[311598489,1705264243044,-4170.0,0.00028497,2]
[311598491,1705264243053,-2271.0,0.00028497,2]
[311598493,1705264243062,-945.0,0.00028497,2]
[311598495,1705264243072,-530.22,0.00028497,2]
[311598497,1705264243083,-322.6212628,0.000285,2]
[311598499,1705264243092,-1963.74169438,0.00028726,4]
[311598501,1705264243101,-15119.89877906,0.00028734,2]
[311598503,1705264243110,-155.0,0.00028767,2]
[311598505,1705264243120,-852.37,0.00028987,2]
[311598507,1705264243129,-450.0,0.00029,3]
[311598509,1705264243142,-150.0,0.00029,2]
[311598511,1705264243151,-300.0,0.00029,2]
[311598513,1705264243161,-528.91,0.00029083,2]
[311598516,1705264243171,-205.0,0.00029155,12]
[311598518,1705264243180,-151.0,0.00029187,7]
[311598520,1705264243189,-151.0,0.00029187,7]
[311598522,1705264243198,-151.0,0.00029187,7]
[311598523,1705264243207,-588.86,0.00029203,2]
[311598525,1705264243216,-186.0,0.00029205,2]
[311598527,1705264243225,-2286.33567688,0.00029443,4]
[311598529,1705264243234,-4894.0,0.00029484,30]
[311598531,1705264243243,-251.86806399,0.000295,3]
[311598533,1705264243252,-15119.89877906,0.00029573,2]
[311598535,1705264243262,-271.04,0.00029631,2]
[311598537,1705264243270,-2895.0,0.00029738,2]
[311598540,1705264243283,-11222.072,0.00029738,2]
[311598542,1705264243293,-674.247,0.00029738,2]
[311598544,1705264243302,-831.0,0.00029738,2]
[311598546,1705264243311,-1234.0,0.00029738,2]
[311598548,1705264243320,-1252.0,0.00029738,2]
[311598550,1705264243332,-175.36700291,0.000298,2]
[311598552,1705264243341,-9962.11,0.00029815,2]
[311598554,1705264243350,-14455.68821814,0.0002985,2]
[311598556,1705264243359,-161.0,0.00029914,2]
[311598558,1705264243369,-171.60687535,0.00029924,2]
[311598560,1705264243378,-852.37,0.00029965,2]
[311598562,1705264243387,-691.79436912,0.0002998,3]
[311598564,1705264243396,-319082.58548,0.0002999,2]
[311598566,1705264243405,-18387.64532713,0.00029998,2]
[311598568,1705264243415,-15661.94496684,0.00029998,2]
[311598570,1705264243425,-35726.72553247,0.00029998,2]
[311598572,1705264243434,-151.0,0.00029998,7]
[311598574,1705264243443,-241.41404965,0.00029999,2]
[311598577,1705264243452,-31537.483922,0.00029999,2]
[311598578,1705264243462,-100000.0,0.0003,2]
[311598581,1705264243474,-1601.08589817,0.0003,4]
[311598583,1705264243483,-9629.9439869,0.0003,2]
[311598585,1705264243493,-2500.0,0.0003,2]
[311598587,1705264243503,-1000.0,0.0003,2]
[311598589,1705264243514,-904.74096856,0.0003,4]
[311598591,1705264243525,-678.07747155,0.0003,4]
[311598593,1705264243536,-582.05205839,0.0003,2]
[311598595,1705264243546,-448.65938781,0.0003,2]
[311598597,1705264243555,-308.41532778,0.0003,7]
[311598599,1705264243565,-44071.01766349,0.0003,4]
[311598632,1705264243856,-683.11765444,0.0003,4]
[311598635,1705264243869,-200.0,0.0003,2]
[311598637,1705264243878,-3101.03122827,0.0003,7]
[311598639,1705264243887,-804.09802034,0.0003,3]
[311598641,1705264243897,-256.67819371,0.0003,2]
[311598643,1705264243906,-157.54,0.0003,2]
[311598645,1705264243915,-300.0,0.0003,2]
[311598647,1705264243924,-300.17,0.0003,2]
[311598649,1705264243934,-300.17,0.0003,2]
[311598651,1705264243943,-300.17,0.0003,2]
[311598653,1705264243952,-300.17,0.0003,2]
[311598655,1705264243962,-300.17,0.0003,2]